[Event "Late-Titled-Tuesday-Blitz-September-26-2023"]
[Site "Chess.com"]
[Date "2023.09.26"]
[Round "5"]
[White "valemava"]
[Black "Mbneu"]
[Result "1-0"]
[WhiteElo "2407"]
[BlackElo "2251"]
[TimeControl "180+1"]
[EndTime "14:54:24 PDT"]
[Termination "valemava won by resignation"]

1. Nf3 {[%clk 0:02:55.5]} 1... c5 {[%clk 0:02:58.5]} 2. c4 {[%clk 0:02:43.1]}
2... e6 {[%clk 0:02:57.6]} 3. b3 {[%clk 0:02:43.3]} 3... d5 {[%clk 0:02:57.5]}
4. cxd5 {[%clk 0:02:40.7]} 4... exd5 {[%clk 0:02:56.8]} 5. Bb2 {[%clk
0:02:41.1]} 5... Nc6 {[%clk 0:02:56.7]} 6. d4 {[%clk 0:02:40.5]} 6... Nf6 {[%clk
0:02:55.2]} 7. g3 {[%clk 0:02:40.3]} 7... Be7 {[%clk 0:02:53.9]} 8. Bg2 {[%clk
0:02:40.5]} 8... O-O {[%clk 0:02:53.9]} 9. O-O {[%clk 0:02:39.8]} 9... Ne4
{[%clk 0:02:49.6]} 10. dxc5 {[%clk 0:02:36]} 10... Bf6 {[%clk 0:02:43.8]} 11.
Nd4 {[%clk 0:02:34.2]} 11... Nxc5 {[%clk 0:02:32.4]} 12. Nxc6 {[%clk 0:02:19.5]}
12... bxc6 {[%clk 0:02:30.8]} 13. Nc3 {[%clk 0:02:17.2]} 13... Re8 {[%clk
0:02:25.5]} 14. e3 {[%clk 0:02:16]} 14... Bf5 {[%clk 0:02:23]} 15. Qd2 {[%clk
0:01:35.9]} 15... Nd3 {[%clk 0:02:06.7]} 16. Na4 {[%clk 0:01:28.5]} 16... Nxb2
{[%clk 0:01:58.7]} 17. Nxb2 {[%clk 0:01:27.3]} 17... Qb6 {[%clk 0:01:38.1]} 18.
Rac1 {[%clk 0:01:24]} 18... Rac8 {[%clk 0:01:36.8]} 19. Na4 {[%clk 0:01:23.5]}
19... Qb8 {[%clk 0:01:29]} 20. Nc5 {[%clk 0:01:22.3]} 20... h5 {[%clk
0:01:25.7]} 21. h4 {[%clk 0:01:19.1]} 21... Qd6 {[%clk 0:01:21.9]} 22. b4 {[%clk
0:01:18.1]} 22... Qe7 {[%clk 0:01:19.2]} 23. Rfe1 {[%clk 0:01:14.7]} 23... Rcd8
{[%clk 0:01:14]} 24. Nb3 {[%clk 0:00:59.3]} 24... Bxh4 {[%clk 0:01:07]} 25. gxh4
{[%clk 0:00:58.3]} 25... Qxh4 {[%clk 0:01:05]} 26. Qd4 {[%clk 0:00:57.2]} 26...
Be4 {[%clk 0:00:49.1]} 27. f3 {[%clk 0:00:47]} 27... Qg3 {[%clk 0:00:47.9]} 28.
fxe4 {[%clk 0:00:42.1]} 28... Rxe4 {[%clk 0:00:44.9]} 29. Qd2 {[%clk 0:00:41.8]}
29... Rh4 {[%clk 0:00:44.3]} 30. Qf2 {[%clk 0:00:39.8]} 30... Qh2+ {[%clk
0:00:43.3]} 31. Kf1 {[%clk 0:00:39.9]} 31... Rd6 {[%clk 0:00:40.8]} 32. Nd4
{[%clk 0:00:33.1]} 32... Rh3 {[%clk 0:00:17.8]} 33. Rxc6 {[%clk 0:00:29.2]}
33... Rxc6 {[%clk 0:00:12.1]} 34. Nxc6 {[%clk 0:00:30.1]} 34... Rh4 {[%clk
0:00:08.7]} 35. Ne7+ {[%clk 0:00:27.8]} 35... Kf8 {[%clk 0:00:07.7]} 36. Ng6+
{[%clk 0:00:27.2]} 1-0

[Event "Late-Titled-Tuesday-Blitz-September-26-2023"]
[Site "Chess.com"]
[Date "2023.09.26"]
[Round "5"]
[White "korason34"]
[Black "DrCeltic"]
[Result "0-1"]
[WhiteElo "2644"]
[BlackElo "2461"]
[TimeControl "180+1"]
[EndTime "14:54:25 PDT"]
[Termination "DrCeltic won by resignation"]

1. e4 {[%clk 0:03:00.9]} 1... c5 {[%clk 0:02:59.9]} 2. Nf3 {[%clk 0:03:01.3]}
2... e6 {[%clk 0:03:00]} 3. d4 {[%clk 0:03:01.6]} 3... cxd4 {[%clk 0:03:00.9]}
4. Nxd4 {[%clk 0:03:02.1]} 4... Nf6 {[%clk 0:03:01.7]} 5. Nc3 {[%clk 0:03:01.6]}
5... d6 {[%clk 0:03:02]} 6. g4 {[%clk 0:02:56.1]} 6... h6 {[%clk 0:03:02.5]} 7.
h4 {[%clk 0:02:39.9]} 7... Nc6 {[%clk 0:03:02.3]} 8. Rg1 {[%clk 0:02:33]} 8...
d5 {[%clk 0:03:02.1]} 9. exd5 {[%clk 0:02:29.1]} 9... Nxd5 {[%clk 0:03:02.9]}
10. Nxd5 {[%clk 0:02:28.8]} 10... Qxd5 {[%clk 0:03:03.8]} 11. Bg2 {[%clk
0:02:28.6]} 11... Qc4 {[%clk 0:03:04.3]} 12. Nxc6 {[%clk 0:01:52.3]} 12... bxc6
{[%clk 0:03:05.2]} 13. b3 {[%clk 0:01:43.6]} 13... Qb4+ {[%clk 0:02:31.8]} 14.
Bd2 {[%clk 0:01:37.5]} 14... Qb6 {[%clk 0:02:31.5]} 15. Qf3 {[%clk 0:01:08.2]}
15... Bb7 {[%clk 0:02:16.8]} 16. O-O-O {[%clk 0:01:05.7]} 16... Be7 {[%clk
0:01:57.7]} 17. g5 {[%clk 0:00:47.1]} 17... h5 {[%clk 0:01:25.5]} 18. Bc3 {[%clk
0:00:44.1]} 18... O-O {[%clk 0:01:21.5]} 19. Qxh5 {[%clk 0:00:30]} 19... Qxf2
{[%clk 0:01:17.6]} 20. Kb2 {[%clk 0:00:20.6]} 20... Qe3 {[%clk 0:01:08.6]} 21.
Rd3 {[%clk 0:00:20.3]} 21... Qxg1 {[%clk 0:01:06.8]} 22. Be4 {[%clk 0:00:20.6]}
22... f5 {[%clk 0:00:46.5]} 23. gxf6 {[%clk 0:00:20.6]} 23... Rxf6 {[%clk
0:00:38.4]} 24. Rd7 {[%clk 0:00:10.5]} 24... Qc5 {[%clk 0:00:26.1]} 25. Qh7+
{[%clk 0:00:09.2]} 25... Kf8 {[%clk 0:00:26.6]} 26. Bg6 {[%clk 0:00:07.2]} 26...
Qa3+ {[%clk 0:00:24.4]} 27. Kb1 {[%clk 0:00:05.1]} 27... Rf1+ {[%clk 0:00:24.5]}
0-1

[Event "Late-Titled-Tuesday-Blitz-September-26-2023"]
[Site "Chess.com"]
[Date "2023.09.26"]
[Round "5"]
[White "Haykoooo0o"]
[Black "SlipperySpeedster"]
[Result "0-1"]
[WhiteElo "2463"]
[BlackElo "2625"]
[TimeControl "180+1"]
[EndTime "14:54:28 PDT"]
[Termination "SlipperySpeedster won by checkmate"]

1. d4 {[%clk 0:02:52.5]} 1... Nf6 {[%clk 0:02:54]} 2. Nf3 {[%clk 0:02:51.6]}
2... g6 {[%clk 0:02:53.5]} 3. Bf4 {[%clk 0:02:51.6]} 3... Bg7 {[%clk 0:02:53.6]}
4. h3 {[%clk 0:02:51.6]} 4... O-O {[%clk 0:02:53.6]} 5. e3 {[%clk 0:02:51]} 5...
d6 {[%clk 0:02:54]} 6. c3 {[%clk 0:02:51.2]} 6... Nbd7 {[%clk 0:02:53.2]} 7. Be2
{[%clk 0:02:51.3]} 7... c6 {[%clk 0:02:48.9]} 8. O-O {[%clk 0:02:51.3]} 8... Re8
{[%clk 0:02:48]} 9. Na3 {[%clk 0:02:49.6]} 9... Nh5 {[%clk 0:02:44.4]} 10. Bh2
{[%clk 0:02:48.2]} 10... d5 {[%clk 0:02:41.6]} 11. Rc1 {[%clk 0:02:41.6]} 11...
e5 {[%clk 0:02:41.1]} 12. Re1 {[%clk 0:02:40.6]} 12... e4 {[%clk 0:02:40.8]} 13.
Nd2 {[%clk 0:02:40.6]} 13... Nhf6 {[%clk 0:02:41.3]} 14. c4 {[%clk 0:02:40.6]}
14... Bf8 {[%clk 0:02:37.5]} 15. cxd5 {[%clk 0:02:38.5]} 15... Nxd5 {[%clk
0:02:37.8]} 16. Nab1 {[%clk 0:02:35.8]} 16... Qb6 {[%clk 0:02:35.8]} 17. Qb3
{[%clk 0:02:33.3]} 17... N7f6 {[%clk 0:02:32.3]} 18. a3 {[%clk 0:02:31.1]} 18...
Be6 {[%clk 0:02:29.7]} 19. Qc2 {[%clk 0:02:25.5]} 19... Bh6 {[%clk 0:02:25.1]}
20. Nc4 {[%clk 0:02:21.6]} 20... Qd8 {[%clk 0:02:23.4]} 21. Nd6 {[%clk
0:02:20.3]} 21... Re7 {[%clk 0:02:23.4]} 22. Nc3 {[%clk 0:02:18.3]} 22... Nxc3
{[%clk 0:02:22.6]} 23. Qxc3 {[%clk 0:02:18.3]} 23... Bd5 {[%clk 0:02:22.5]} 24.
Nc4 {[%clk 0:02:05.8]} 24... Be6 {[%clk 0:02:18.8]} 25. b4 {[%clk 0:02:02.6]}
25... Nd5 {[%clk 0:02:18.9]} 26. Qc2 {[%clk 0:01:59.7]} 26... f5 {[%clk
0:02:19.6]} 27. Ne5 {[%clk 0:01:55.8]} 27... f4 {[%clk 0:02:19.2]} 28. exf4
{[%clk 0:01:32.8]} 28... Nxf4 {[%clk 0:02:11.3]} 29. Bf1 {[%clk 0:01:22.4]}
29... Bd5 {[%clk 0:02:05]} 30. Ng4 {[%clk 0:01:13.4]} 30... Qf8 {[%clk
0:01:56.8]} 31. Nxh6+ {[%clk 0:00:57.9]} 31... Qxh6 {[%clk 0:01:57.7]} 32. Bxf4
{[%clk 0:00:57.3]} 32... Qxf4 {[%clk 0:01:56.4]} 33. Re3 {[%clk 0:00:58.2]}
33... Rf8 {[%clk 0:01:53.8]} 34. g3 {[%clk 0:00:55.6]} 34... Qh6 {[%clk
0:01:53.4]} 35. Bg2 {[%clk 0:00:55.1]} 35... Ref7 {[%clk 0:01:53]} 36. Rf1
{[%clk 0:00:48.3]} 36... Qg5 {[%clk 0:01:27.6]} 37. h4 {[%clk 0:00:34.5]} 37...
Qh6 {[%clk 0:01:25.4]} 38. Bxe4 {[%clk 0:00:27.9]} 38... Qxe3 {[%clk 0:01:24.4]}
39. fxe3 {[%clk 0:00:07.7]} 39... Rxf1+ {[%clk 0:01:23.5]} 40. Kg2 {[%clk
0:00:07.8]} 40... R8f2+ {[%clk 0:01:22.8]} 41. Kh3 {[%clk 0:00:03.7]} 41... Rxc2
{[%clk 0:01:18.9]} 42. Bxc2 {[%clk 0:00:03.3]} 42... Rf2 {[%clk 0:01:18.3]} 43.
Bd3 {[%clk 0:00:03.1]} 43... h5 {[%clk 0:01:15.5]} 44. e4 {[%clk 0:00:04]} 44...
Be6+ {[%clk 0:01:13.4]} 45. g4 {[%clk 0:00:04.4]} 45... hxg4+ {[%clk 0:01:13.4]}
46. Kg3 {[%clk 0:00:05.3]} 46... Rf3+ {[%clk 0:01:14.3]} 47. Kg2 {[%clk
0:00:05]} 47... Rxd3 {[%clk 0:01:15.2]} 48. d5 {[%clk 0:00:05.8]} 48... cxd5
{[%clk 0:01:14.9]} 49. e5 {[%clk 0:00:06.3]} 49... Bf5 {[%clk 0:01:13.9]} 50. h5
{[%clk 0:00:07.2]} 50... gxh5 {[%clk 0:01:13.6]} 51. b5 {[%clk 0:00:08.1]} 51...
h4 {[%clk 0:01:13.3]} 52. b6 {[%clk 0:00:09]} 52... h3+ {[%clk 0:01:14.2]} 53.
Kf2 {[%clk 0:00:09]} 53... axb6 {[%clk 0:01:14.1]} 54. Ke2 {[%clk 0:00:09.9]}
54... h2 {[%clk 0:01:13.4]} 55. a4 {[%clk 0:00:10.5]} 55... h1=Q {[%clk
0:01:13.9]} 56. a5 {[%clk 0:00:11.4]} 56... Qf3+ {[%clk 0:01:14.6]} 57. Ke1
{[%clk 0:00:11.4]} 57... Rd1# {[%clk 0:01:15.5]} 0-1

[Event "Late-Titled-Tuesday-Blitz-September-26-2023"]
[Site "Chess.com"]
[Date "2023.09.26"]
[Round "5"]
[White "Willychess95"]
[Black "iturrizaga"]
[Result "0-1"]
[WhiteElo "2700"]
[BlackElo "2998"]
[TimeControl "180+1"]
[EndTime "14:54:30 PDT"]
[Termination "iturrizaga won by resignation"]

1. e4 {[%clk 0:02:49.7]} 1... c5 {[%clk 0:03:00.3]} 2. Nf3 {[%clk 0:02:45.3]}
2... e6 {[%clk 0:03:00.6]} 3. d4 {[%clk 0:02:43.4]} 3... cxd4 {[%clk 0:03:01]}
4. Nxd4 {[%clk 0:02:43.9]} 4... a6 {[%clk 0:03:01.9]} 5. g3 {[%clk 0:02:43.1]}
5... h5 {[%clk 0:02:58.9]} 6. h3 {[%clk 0:02:36.4]} 6... Ne7 {[%clk 0:02:54.1]}
7. Bg2 {[%clk 0:02:33.7]} 7... Ng6 {[%clk 0:02:55]} 8. h4 {[%clk 0:02:18]} 8...
Bc5 {[%clk 0:02:54.4]} 9. c3 {[%clk 0:01:47.1]} 9... Qc7 {[%clk 0:02:52]} 10.
Be3 {[%clk 0:01:44.9]} 10... b5 {[%clk 0:02:51]} 11. Nd2 {[%clk 0:01:41.6]}
11... Bb7 {[%clk 0:02:51.1]} 12. Qe2 {[%clk 0:01:36.8]} 12... Ne5 {[%clk
0:02:50.6]} 13. Nc2 {[%clk 0:01:26.5]} 13... d6 {[%clk 0:02:48.9]} 14. O-O-O
{[%clk 0:01:20.8]} 14... Nbd7 {[%clk 0:02:45.1]} 15. f4 {[%clk 0:01:15.4]} 15...
Ng4 {[%clk 0:02:43.8]} 16. Bxc5 {[%clk 0:01:07.5]} 16... Nxc5 {[%clk 0:02:44.7]}
17. Bf3 {[%clk 0:00:57.2]} 17... Nf2 {[%clk 0:02:44.2]} 18. Kb1 {[%clk
0:00:53.6]} 18... Nxh1 {[%clk 0:02:42.2]} 19. Bxh1 {[%clk 0:00:52.5]} 19... g6
{[%clk 0:02:40.6]} 20. Nd4 {[%clk 0:00:46.6]} 20... e5 {[%clk 0:02:39.1]} 21.
Nc2 {[%clk 0:00:43.8]} 21... O-O-O {[%clk 0:02:39]} 22. Nb4 {[%clk 0:00:36.4]}
22... exf4 {[%clk 0:02:37.5]} 23. gxf4 {[%clk 0:00:36.4]} 23... Rhe8 {[%clk
0:02:37.9]} 24. Qe3 {[%clk 0:00:33.7]} 24... f5 {[%clk 0:02:35.7]} 25. Qh3
{[%clk 0:00:25.5]} 25... Kb8 {[%clk 0:02:33.7]} 26. exf5 {[%clk 0:00:23.8]}
26... Bc8 {[%clk 0:02:30.7]} 27. Nc6+ {[%clk 0:00:21.4]} 27... Qxc6 {[%clk
0:02:25.7]} 28. Bxc6 {[%clk 0:00:20.9]} 28... Bxf5+ {[%clk 0:02:26.4]} 29. Qxf5
{[%clk 0:00:21]} 29... gxf5 {[%clk 0:02:26.7]} 30. Bxe8 {[%clk 0:00:21]} 30...
Rxe8 {[%clk 0:02:27.6]} 31. Nb3 {[%clk 0:00:20.7]} 31... Ne4 {[%clk 0:02:02.5]}
32. Rd5 {[%clk 0:00:18.6]} 32... Ng3 {[%clk 0:01:34.5]} 33. Nd4 {[%clk
0:00:15.7]} 33... Re1+ {[%clk 0:01:17]} 34. Kc2 {[%clk 0:00:15.7]} 34... Rh1
{[%clk 0:01:17.9]} 35. Nxf5 {[%clk 0:00:15.3]} 35... Rh2+ {[%clk 0:01:17.7]} 36.
Kb3 {[%clk 0:00:15]} 36... Ne2 {[%clk 0:01:06.1]} 37. Rxd6 {[%clk 0:00:13.9]}
37... Nxf4 {[%clk 0:01:01.7]} 38. Rxa6 {[%clk 0:00:12.3]} 38... Nd3 {[%clk
0:01:01.8]} 39. Rb6+ {[%clk 0:00:12.2]} 39... Kc7 {[%clk 0:01:00.8]} 40. Rxb5
{[%clk 0:00:13.1]} 40... Rxb2+ {[%clk 0:00:42]} 41. Kc4 {[%clk 0:00:12.7]} 41...
Rd2 {[%clk 0:00:42.9]} 42. Rd5 {[%clk 0:00:08.4]} 42... Nb2+ {[%clk 0:00:41.5]}
43. Kc5 {[%clk 0:00:08.5]} 43... Na4+ {[%clk 0:00:40.4]} 44. Kc4 {[%clk
0:00:08.3]} 44... Nb6+ {[%clk 0:00:40.6]} 0-1

[Event "Late-Titled-Tuesday-Blitz-September-26-2023"]
[Site "Chess.com"]
[Date "2023.09.26"]
[Round "5"]
[White "KorolDimitriy75"]
[Black "imdarealist"]
[Result "0-1"]
[WhiteElo "2383"]
[BlackElo "2267"]
[TimeControl "180+1"]
[EndTime "14:54:34 PDT"]
[Termination "imdarealist won on time"]

1. d4 {[%clk 0:03:00.9]} 1... d5 {[%clk 0:02:58.4]} 2. c4 {[%clk 0:03:01.1]}
2... e6 {[%clk 0:02:57.9]} 3. Nc3 {[%clk 0:03:01.6]} 3... Nf6 {[%clk 0:02:56.6]}
4. Bg5 {[%clk 0:03:01.6]} 4... Be7 {[%clk 0:02:53.7]} 5. cxd5 {[%clk 0:03:01.7]}
5... Nxd5 {[%clk 0:02:48.8]} 6. Bxe7 {[%clk 0:03:01.3]} 6... Qxe7 {[%clk
0:02:44]} 7. e4 {[%clk 0:03:01.5]} 7... Nxc3 {[%clk 0:02:43.4]} 8. bxc3 {[%clk
0:03:02.4]} 8... O-O {[%clk 0:02:42.4]} 9. Nf3 {[%clk 0:03:02.5]} 9... c5 {[%clk
0:02:41.8]} 10. Be2 {[%clk 0:02:53.9]} 10... Nc6 {[%clk 0:02:37.6]} 11. O-O
{[%clk 0:02:52.1]} 11... cxd4 {[%clk 0:02:35.9]} 12. cxd4 {[%clk 0:02:53]} 12...
Rd8 {[%clk 0:02:35.7]} 13. Qa4 {[%clk 0:02:52.1]} 13... a6 {[%clk 0:02:31.9]}
14. Rfd1 {[%clk 0:02:40.6]} 14... Bd7 {[%clk 0:02:09.1]} 15. Qb3 {[%clk
0:02:34.5]} 15... Na5 {[%clk 0:02:05.8]} 16. Qc3 {[%clk 0:02:04.6]} 16... b6
{[%clk 0:02:04.3]} 17. Rab1 {[%clk 0:01:40.8]} 17... Ba4 {[%clk 0:01:57.9]} 18.
Rdc1 {[%clk 0:01:26.4]} 18... Rdb8 {[%clk 0:01:28.2]} 19. Ne5 {[%clk 0:00:58]}
19... Qd8 {[%clk 0:01:26.4]} 20. h3 {[%clk 0:00:20.8]} 20... b5 {[%clk
0:01:13.8]} 21. Qc7 {[%clk 0:00:13.8]} 21... Qxc7 {[%clk 0:01:10]} 22. Rxc7
{[%clk 0:00:14.7]} 22... f6 {[%clk 0:01:07.6]} 23. Nd7 {[%clk 0:00:11.4]} 23...
Rc8 {[%clk 0:01:00.2]} 24. Rbc1 {[%clk 0:00:11.1]} 24... Nc4 {[%clk 0:00:37.7]}
25. Rxc8+ {[%clk 0:00:06.3]} 25... Rxc8 {[%clk 0:00:38.6]} 26. Nc5 {[%clk
0:00:04.4]} 26... Nb6 {[%clk 0:00:33.6]} 27. Bg4 {[%clk 0:00:03.6]} 27... f5
{[%clk 0:00:23]} 28. exf5 {[%clk 0:00:03.3]} 28... exf5 {[%clk 0:00:14.4]} 29.
Bxf5 {[%clk 0:00:03.3]} 29... Rc6 {[%clk 0:00:15]} 30. Re1 {[%clk 0:00:01.9]}
30... g6 {[%clk 0:00:11]} 31. Be6+ {[%clk 0:00:01.1]} 31... Kg7 {[%clk
0:00:10.9]} 0-1

[Event "Late-Titled-Tuesday-Blitz-September-26-2023"]
[Site "Chess.com"]
[Date "2023.09.26"]
[Round "5"]
[White "eCztery"]
[Black "Iball95"]
[Result "1/2-1/2"]
[WhiteElo "2433"]
[BlackElo "2755"]
[TimeControl "180+1"]
[EndTime "14:54:37 PDT"]
[Termination "Game drawn by repetition"]

1. e4 {[%clk 0:03:00.9]} 1... c5 {[%clk 0:03:00.4]} 2. Nf3 {[%clk 0:03:00.1]}
2... e6 {[%clk 0:02:59.4]} 3. d4 {[%clk 0:03:00.1]} 3... cxd4 {[%clk 0:03:00.3]}
4. Nxd4 {[%clk 0:03:00.9]} 4... Nf6 {[%clk 0:03:01.2]} 5. Nc3 {[%clk 0:03:01.5]}
5... Nc6 {[%clk 0:03:01.4]} 6. g3 {[%clk 0:03:01.5]} 6... d5 {[%clk 0:03:00.3]}
7. exd5 {[%clk 0:02:56.5]} 7... exd5 {[%clk 0:02:57]} 8. Bg2 {[%clk 0:02:55.9]}
8... Bg4 {[%clk 0:02:56.8]} 9. Qd3 {[%clk 0:02:50.5]} 9... Bc5 {[%clk
0:02:54.2]} 10. Nxc6 {[%clk 0:02:39.8]} 10... bxc6 {[%clk 0:02:54.9]} 11. O-O
{[%clk 0:02:40]} 11... O-O {[%clk 0:02:54.6]} 12. Ne2 {[%clk 0:02:28.6]} 12...
Re8 {[%clk 0:02:47.6]} 13. Nd4 {[%clk 0:02:26.4]} 13... Qb6 {[%clk 0:02:34.8]}
14. Be3 {[%clk 0:02:13.3]} 14... Rad8 {[%clk 0:02:34.6]} 15. b4 {[%clk
0:02:08.4]} 15... Bxd4 {[%clk 0:01:48.1]} 16. Bxd4 {[%clk 0:02:07.4]} 16... Qxb4
{[%clk 0:01:46]} 17. Bxf6 {[%clk 0:02:07.2]} 17... gxf6 {[%clk 0:01:46.9]} 18.
Rab1 {[%clk 0:01:55.3]} 18... Qc5 {[%clk 0:01:46.7]} 19. Rb7 {[%clk 0:01:25.8]}
19... Re7 {[%clk 0:01:29.4]} 20. Rfb1 {[%clk 0:01:07.3]} 20... Rde8 {[%clk
0:01:25.9]} 21. Rxe7 {[%clk 0:00:58.1]} 21... Rxe7 {[%clk 0:01:17.7]} 22. h3
{[%clk 0:00:54.3]} 22... Be6 {[%clk 0:00:51.4]} 23. Qf3 {[%clk 0:00:45.3]} 23...
Kg7 {[%clk 0:00:51]} 24. c3 {[%clk 0:00:36.1]} 24... a5 {[%clk 0:00:46.6]} 25.
Kh2 {[%clk 0:00:34.1]} 25... d4 {[%clk 0:00:38.3]} 26. cxd4 {[%clk 0:00:31.1]}
26... Qxd4 {[%clk 0:00:39.1]} 27. Rb8 {[%clk 0:00:27.2]} 27... Bd5 {[%clk
0:00:30.6]} 28. Qf5 {[%clk 0:00:20.1]} 28... Bxg2 {[%clk 0:00:19]} 29. Qc8
{[%clk 0:00:14.1]} 29... Qxf2 {[%clk 0:00:12.3]} 30. Qg4+ {[%clk 0:00:13.5]}
30... Kh6 {[%clk 0:00:12]} 31. Qh4+ {[%clk 0:00:13.4]} 31... Kg7 {[%clk
0:00:10]} 32. Qg4+ {[%clk 0:00:12.2]} 32... Kh6 {[%clk 0:00:10.4]} 33. Qh4+
{[%clk 0:00:11.5]} 33... Kg7 {[%clk 0:00:10.6]} 34. Qg4+ {[%clk 0:00:11.2]}
1/2-1/2

[Event "Late-Titled-Tuesday-Blitz-September-26-2023"]
[Site "Chess.com"]
[Date "2023.09.26"]
[Round "5"]
[White "Flawless_Fighter"]
[Black "Herman-NY"]
[Result "1-0"]
[WhiteElo "2777"]
[BlackElo "2501"]
[TimeControl "180+1"]
[EndTime "14:54:37 PDT"]
[Termination "Flawless_Fighter won by resignation"]

1. f4 {[%clk 0:03:00.9]} 1... d5 {[%clk 0:02:56.9]} 2. Nf3 {[%clk 0:03:00.7]}
2... g6 {[%clk 0:02:56.1]} 3. g3 {[%clk 0:03:01.2]} 3... Bg7 {[%clk 0:02:56.7]}
4. Bg2 {[%clk 0:03:01.8]} 4... Nc6 {[%clk 0:02:57.2]} 5. O-O {[%clk 0:03:02.5]}
5... e5 {[%clk 0:02:46.1]} 6. d3 {[%clk 0:03:00.6]} 6... Bg4 {[%clk 0:02:06.6]}
7. h3 {[%clk 0:02:53.1]} 7... Bf5 {[%clk 0:02:00.1]} 8. Nc3 {[%clk 0:02:46.8]}
8... d4 {[%clk 0:01:38.1]} 9. Ne4 {[%clk 0:02:44.5]} 9... h5 {[%clk 0:01:11.7]}
10. e3 {[%clk 0:02:33.9]} 10... exf4 {[%clk 0:01:02.6]} 11. exf4 {[%clk
0:02:26.7]} 11... Nge7 {[%clk 0:00:44]} 12. Bd2 {[%clk 0:02:23.8]} 12... a5
{[%clk 0:00:21.8]} 13. Qe2 {[%clk 0:02:14.7]} 13... O-O {[%clk 0:00:21.3]} 14.
Nh4 {[%clk 0:02:12.8]} 14... b6 {[%clk 0:00:16.7]} 15. Rae1 {[%clk 0:02:12]}
15... Qd7 {[%clk 0:00:15.4]} 16. Ng5 {[%clk 0:02:10.2]} 16... Rae8 {[%clk
0:00:13]} 17. Qf3 {[%clk 0:02:09.8]} 17... Nb4 {[%clk 0:00:06.7]} 18. Bxb4
{[%clk 0:02:07.8]} 18... axb4 {[%clk 0:00:07.6]} 19. Kh2 {[%clk 0:02:05.4]}
19... Nc8 {[%clk 0:00:08]} 20. Nxf5 {[%clk 0:01:52.7]} 20... Qxf5 {[%clk
0:00:07.7]} 21. Qd5 {[%clk 0:01:53.3]} 21... Qxd5 {[%clk 0:00:07.1]} 22. Bxd5
{[%clk 0:01:54.2]} 22... Nd6 {[%clk 0:00:06.8]} 23. Bc6 {[%clk 0:01:49.3]} 23...
Rxe1 {[%clk 0:00:05.3]} 24. Rxe1 {[%clk 0:01:50.2]} 24... Bf6 {[%clk 0:00:05.7]}
25. Nf3 {[%clk 0:01:46.7]} 25... Rd8 {[%clk 0:00:05.8]} 26. g4 {[%clk
0:01:45.3]} 26... hxg4 {[%clk 0:00:05.9]} 27. hxg4 {[%clk 0:01:46.2]} 27... Kf8
{[%clk 0:00:06.3]} 28. Kg3 {[%clk 0:01:46.9]} 28... Bg7 {[%clk 0:00:06.6]} 29.
g5 {[%clk 0:01:47.5]} 29... Nf5+ {[%clk 0:00:06]} 30. Kf2 {[%clk 0:01:46.7]}
30... Ne3 {[%clk 0:00:06.9]} 31. Nd2 {[%clk 0:01:35.7]} 31... Nxc2 {[%clk
0:00:05.5]} 32. Rc1 {[%clk 0:01:36.4]} 32... Ne3 {[%clk 0:00:05.5]} 33. Ne4
{[%clk 0:01:36.7]} 33... Rb8 {[%clk 0:00:03.6]} 34. Kf3 {[%clk 0:01:32.8]} 34...
Ke7 {[%clk 0:00:04.1]} 35. Ba4 {[%clk 0:01:31]} 35... c5 {[%clk 0:00:04.1]} 36.
Bb3 {[%clk 0:01:29.8]} 36... Rh8 {[%clk 0:00:03.8]} 37. Kg3 {[%clk 0:01:27.8]}
37... Kf8 {[%clk 0:00:02.8]} 38. Nd6 {[%clk 0:01:27.2]} 38... Ke7 {[%clk
0:00:02.4]} 39. Nxf7 {[%clk 0:01:26.6]} 39... Nf5+ {[%clk 0:00:02.4]} 40. Kg2
{[%clk 0:01:25.5]} 40... Ne3+ {[%clk 0:00:02]} 41. Kg3 {[%clk 0:01:24.1]} 41...
Rf8 {[%clk 0:00:02.9]} 42. Nh6 {[%clk 0:01:18.4]} 42... Bxh6 {[%clk 0:00:03.3]}
43. gxh6 {[%clk 0:01:19.3]} 43... Nf5+ {[%clk 0:00:03.8]} 44. Kf3 {[%clk
0:01:20]} 44... Nxh6 {[%clk 0:00:04.7]} 45. Re1+ {[%clk 0:01:19.9]} 45... Kd7
{[%clk 0:00:05.2]} 46. Re6 {[%clk 0:01:20.2]} 46... Nf5 {[%clk 0:00:05.5]} 47.
Rxb6 {[%clk 0:01:19.2]} 47... Nd6 {[%clk 0:00:05.8]} 48. Ba4+ {[%clk 0:01:18.2]}
48... Ke6 {[%clk 0:00:04.5]} 49. Bb3+ {[%clk 0:01:16.3]} 49... Kd7 {[%clk
0:00:04.5]} 50. Ra6 {[%clk 0:01:17.2]} 50... g5 {[%clk 0:00:04.6]} 51. Kg4
{[%clk 0:01:16.6]} 51... Rxf4+ {[%clk 0:00:04.6]} 52. Kxg5 {[%clk 0:01:17.1]}
52... Rf2 {[%clk 0:00:05.1]} 53. Kg4 {[%clk 0:01:14.8]} 53... Rxb2 {[%clk
0:00:04.9]} 54. Kf4 {[%clk 0:01:13.9]} 54... Re2 {[%clk 0:00:05.2]} 55. Bd5
{[%clk 0:01:13.2]} 55... Re3 {[%clk 0:00:05.5]} 56. Ra7+ {[%clk 0:01:13.3]}
56... Kd8 {[%clk 0:00:05.5]} 57. Bc6 {[%clk 0:01:13.9]} 57... Re1 {[%clk
0:00:03.9]} 58. Rd7+ {[%clk 0:01:14.2]} 58... Kc8 {[%clk 0:00:03.8]} 59. Rxd6
{[%clk 0:01:15.1]} 59... Re3 {[%clk 0:00:03.7]} 60. Bb5 {[%clk 0:01:15.2]} 60...
Kc7 {[%clk 0:00:03.9]} 61. Rc6+ {[%clk 0:01:14.9]} 61... Kb7 {[%clk 0:00:04.5]}
62. Rxc5 {[%clk 0:01:15.8]} 62... Kb6 {[%clk 0:00:05.1]} 63. Rd5 {[%clk
0:01:15.3]} 1-0